fUST/lending_fUST_20241109
["ID","MTS","AMOUNT","RATE_DAILY","PERIOD"]
[341677058,1731084641802,-500.0,0.00022191,2]
[341677059,1731084641812,-500.0,0.00022191,2]
[341677060,1731084641822,-500.0,0.00022191,2]
[341677061,1731084641831,-500.0,0.00022191,2]
[341677062,1731084641841,-500.0,0.00022191,2]
[341677063,1731084641851,-500.0,0.00022191,2]
[341677064,1731084641860,-500.0,0.00022191,2]
[341677065,1731084641870,-500.0,0.00022191,2]
[341677066,1731084641879,-500.0,0.00022191,2]
[341677067,1731084641888,-500.0,0.00022191,2]
[341677068,1731084641898,-573.86135289,0.00022191,2]
[341677069,1731084641907,-500.0,0.00022191,2]
[341677070,1731084641918,-500.0,0.00022191,2]
[341677071,1731084641927,-500.0,0.00022191,2]
[341677072,1731084641936,-500.0,0.00022191,2]
[341677073,1731084641945,-231.215694,0.00022208,2]
[341677074,1731084641955,-500.0,0.0002237,2]
[341677075,1731084641964,-500.0,0.0002237,2]
[341677076,1731084641973,-500.0,0.0002237,2]
[341677077,1731084641984,-500.0,0.0002237,2]
[341677078,1731084641993,-500.0,0.00022465,2]
[341677079,1731084642002,-588.79458872,0.00022465,2]
[341677080,1731084642012,-500.0,0.00022465,2]
[341677081,1731084642022,-646.90908228,0.00022465,2]
[341677082,1731084642032,-500.0,0.00022465,2]
[341677083,1731084642042,-500.0,0.00022465,2]
[341677084,1731084642051,-500.0,0.00022465,2]
[341677085,1731084642060,-500.0,0.00022465,2]
[341677086,1731084642070,-481.70307101,0.00022465,2]
[341677087,1731084642080,-500.0,0.00022465,2]
[341677088,1731084642089,-500.0,0.00022465,2]
[341677089,1731084642098,-500.0,0.00022465,2]
[341677090,1731084642108,-500.0,0.00022465,2]
[341677091,1731084642117,-500.0,0.00022465,2]
[341677092,1731084642126,-529.41,0.00022465,2]
[341677093,1731084642136,-1113.03,0.00022465,2]
[341677094,1731084642145,-500.0,0.00022465,2]
[341677095,1731084642154,-500.0,0.00022465,2]
[341677096,1731084642163,-500.0,0.00022465,2]
[341677097,1731084642173,-500.30097221,0.00022465,2]
[341677098,1731084642182,-500.0,0.00022465,2]
[341677099,1731084642191,-500.0,0.00022465,2]
[341677100,1731084642200,-500.0,0.00022465,2]
[341677101,1731084642209,-500.0,0.00022465,2]
[341677102,1731084642218,-500.0,0.00022465,2]
[341677103,1731084642227,-500.0,0.00022465,2]
[341677104,1731084642236,-500.0,0.00022465,2]
[341677105,1731084642245,-500.0,0.00022465,2]
[341677106,1731084642255,-284.72704998,0.00022465,2]
[341677107,1731084642264,-500.0,0.00022465,2]
[341677108,1731084642273,-1313.78,0.00022465,2]
[341677109,1731084642285,-500.0,0.00022465,2]
[341677110,1731084642294,-500.0,0.00022465,2]
[341677111,1731084642303,-500.0,0.00022465,2]
[341677112,1731084642312,-500.0,0.00022465,2]
[341677113,1731084642321,-500.0,0.00022465,2]
[341677114,1731084642330,-500.0,0.00022465,2]
[341677115,1731084642339,-500.0,0.00022465,2]
[341677116,1731084642349,-500.0,0.00022465,2]
[341677117,1731084642358,-500.0,0.00022465,2]
[341677118,1731084642367,-500.0,0.00022465,2]
[341677119,1731084642376,-500.0,0.00022465,2]
[341677120,1731084642385,-500.0,0.00022644,2]
[341677121,1731084642394,-210.72,0.00022739,2]
[341677122,1731084642403,-500.0,0.00022739,2]
[341677123,1731084642412,-500.0,0.00022739,2]
[341677124,1731084642421,-500.0,0.00022739,2]
[341677125,1731084642430,-529.41,0.00022739,2]
[341677126,1731084642439,-1113.03,0.00022739,2]
[341677127,1731084642449,-500.0,0.00022739,2]
[341677128,1731084642458,-500.0,0.00022739,2]
[341677129,1731084642467,-500.0,0.00022739,2]
[341677130,1731084642476,-502.7,0.00022739,2]
[341677131,1731084642485,-500.0,0.00022739,2]
[341677132,1731084642494,-500.0,0.00022739,2]
[341677133,1731084642503,-1313.78,0.00022739,2]
[341677134,1731084642513,-500.0,0.00022739,2]
[341677135,1731084642522,-174.57829496,0.00022739,2]
[341677136,1731084642533,-500.0,0.00022739,2]
[341677137,1731084642545,-500.0,0.00022739,2]
[341677138,1731084642555,-500.0,0.00022739,2]
[341677139,1731084642563,-500.0,0.00022739,2]
[341677140,1731084642573,-176.18,0.00023013,2]
[341677141,1731084642582,-1113.03,0.00023013,2]
[341677142,1731084642591,-529.41,0.00023013,2]
[341677143,1731084642600,-500.0,0.00023013,2]
[341677144,1731084642610,-500.0,0.00023013,2]
[341677145,1731084642618,-527.86,0.00023013,2]
[341677146,1731084642627,-1313.78,0.00023013,2]
[341677147,1731084642639,-585.15634434,0.00023013,2]
[341677148,1731084642648,-500.0,0.00023013,2]
[341677149,1731084642657,-500.0,0.00023013,2]
[341677150,1731084642667,-500.0,0.00023013,2]
[341677151,1731084642677,-1229.75338419,0.00023236,2]
[341677152,1731084642686,-1113.03,0.00023287,2]
[341677153,1731084642696,-529.41,0.00023287,2]
[341677154,1731084642706,-552.23,0.00023287,2]
[341677155,1731084642718,-500.0,0.00023287,2]
[341677156,1731084642728,-1313.78,0.00023287,2]
[341677157,1731084642737,-500.0,0.00023287,2]
[341677158,1731084642747,-500.0,0.00023287,2]
[341677159,1731084642756,-336.01285805,0.00023542,2]
[341677160,1731084642765,-1000.0,0.00023542,2]
[341677161,1731084642775,-500.0,0.00023542,2]
[341677162,1731084642787,-185.5375459,0.0002356,2]
[341677163,1731084642796,-384.92471199,0.0002356,2]
[341677164,1731084642805,-211.46304093,0.0002356,2]
[341677165,1731084642815,-524.03897962,0.0002356,2]
[341677167,1731084642824,-194.02621796,0.0002356,2]
[341677168,1731084642833,-1113.03,0.00023561,2]
[341677169,1731084642842,-529.41,0.00023561,2]
[341677170,1731084642851,-500.0,0.00023561,2]
[341677171,1731084642860,-1313.78,0.00023561,2]
[341677172,1731084642870,-467.85,0.00023561,2]
[341677173,1731084642879,-500.0,0.00023561,2]
[341677174,1731084642888,-444.65064152,0.00023563,2]
[341677175,1731084642897,-420.0,0.00023817,2]
[341677176,1731084642906,-1113.03,0.00023835,2]
[341677177,1731084642915,-529.41,0.00023835,2]
[341677179,1731084642925,-500.0,0.00023835,2]
[341677180,1731084642935,-1313.78,0.00023835,2]
[341677181,1731084642944,-500.0,0.00023835,2]
[341677182,1731084642953,-420.0,0.00024108,2]
[341677183,1731084642963,-1113.03,0.00024109,2]
[341677184,1731084642979,-529.41,0.00024109,2]
[341677185,1731084642992,-500.0,0.00024109,2]
[341677186,1731084643002,-1313.78,0.00024109,2]
[341677187,1731084643013,-500.0,0.00024109,2]
[341677188,1731084643023,-500.0,0.0002438,2]
[341677189,1731084643034,-1113.03,0.00024383,2]
[341677190,1731084643044,-529.41,0.00024383,2]
[341677191,1731084643053,-1313.78,0.00024383,2]
[341677192,1731084643063,-500.0,0.00024383,2]
[341677193,1731084643073,-1229.75338419,0.00024654,2]
[341677194,1731084643083,-1113.03,0.00024657,2]
[341677195,1731084643092,-529.41,0.00024657,2]
[341677197,1731084643101,-1313.78,0.00024657,2]
[341677199,1731084643111,-425.86,0.00024657,2]
[341677200,1731084643121,-500.0,0.00024658,2]
[341677201,1731084643130,-500.0,0.00024658,2]
[341677202,1731084643141,-304.14213093,0.00024658,2]
[341677203,1731084643150,-500.0,0.00024658,2]
[341677204,1731084643160,-500.0,0.00024658,2]
[341677205,1731084643170,-500.0,0.00024658,2]
[341677206,1731084643179,-285.62948796,0.00024658,2]
[341677207,1731084643189,-1113.03,0.00024931,2]
[341677208,1731084643198,-529.41,0.00024931,2]
[341677209,1731084643207,-1313.78,0.00024931,2]
[341677210,1731084643217,-217.0,0.00024932,2]
[341677211,1731084643226,-236.069,0.00025,2]
[341677212,1731084643236,-217.0,0.00025,2]
[341677214,1731084643246,-303.03333336,0.00025,2]
[341677215,1731084643255,-171.0,0.00025,2]
[341677216,1731084643265,-1113.03,0.00025205,2]
[341677217,1731084643274,-529.41,0.00025205,2]
[341677218,1731084643286,-1313.78,0.00025205,2]
[341677219,1731084643295,-303.03333336,0.0002525,2]
[341677221,1731084643304,-444.65064152,0.00025309,2]
[341677223,1731084643313,-1113.03,0.00025479,2]
[341677225,1731084643323,-529.41,0.00025479,2]
[341677227,1731084643332,-1313.78,0.00025479,2]
[341677229,1731084643341,-303.03333336,0.000255,2]
[341677231,1731084643351,-303.03333336,0.0002575,2]
[341677233,1731084643360,-1113.03,0.00025753,2]
[341677234,1731084643369,-529.41,0.00025753,2]
[341677235,1731084643379,-1313.78,0.00025753,2]
[341677236,1731084643388,-420.0,0.00025884,2]
[341677237,1731084643398,-217.0,0.0002589,2]
[341677238,1731084643407,-171.0,0.0002589,2]
[341677239,1731084643416,-303.03333336,0.00026,2]
[341677240,1731084643426,-1113.03,0.00026027,2]
[341677241,1731084643435,-529.41,0.00026027,2]
[341677242,1731084643445,-1313.78,0.00026027,2]
[341677244,1731084643454,-1500.0,0.00026047,2]
[341677245,1731084643464,-1229.75338419,0.00026073,2]
[341677246,1731084643473,-170.906,0.00026106,12]
[341677247,1731084643483,-286.25153372,0.0002625,4]
[341677248,1731084643492,-165.946753,0.00026274,2]
[341677249,1731084643502,-1113.03,0.00026301,2]
[341677251,1731084643512,-529.41,0.00026301,2]
[341677252,1731084643521,-1313.78,0.00026301,2]
[341677255,1731084643533,-587.0,0.00026518,2]
[341677257,1731084643542,-1113.03,0.00026575,2]
[341677259,1731084643552,-529.41,0.00026575,2]
[341677260,1731084643562,-1313.78,0.00026575,2]
[341677261,1731084643571,-1113.03,0.00026849,2]
[341677262,1731084643581,-529.41,0.00026849,2]
[341677263,1731084643590,-1313.78,0.00026849,2]
[341677264,1731084643599,-771.03586656,0.0002687,2]
[341677266,1731084643610,-444.65064152,0.00027054,2]
[341677267,1731084643619,-1113.03,0.00027123,2]
[341677268,1731084643629,-529.41,0.00027123,2]
[341677269,1731084643642,-1313.78,0.00027123,2]
[341677270,1731084643651,-221.0,0.00027185,2]
[341677271,1731084643661,-1113.03,0.00027397,2]
[341677272,1731084643671,-529.41,0.00027397,2]
[341677273,1731084643681,-1313.78,0.00027397,2]
[341677274,1731084643691,-500.0,0.00027397,2]
[341677275,1731084643700,-500.0,0.00027397,2]
[341677276,1731084643710,-500.0,0.00027397,2]
[341677277,1731084643720,-500.0,0.00027397,2]
[341677278,1731084643730,-479.37940404,0.00027397,2]
[341677279,1731084643740,-500.0,0.00027397,2]
[341677280,1731084643749,-500.0,0.00027397,2]
[341677281,1731084643759,-500.0,0.00027397,2]
[341677282,1731084643769,-300.73488847,0.00027397,2]
[341677283,1731084643779,-308.07733411,0.00027397,2]
[341677284,1731084643793,-1132.0,0.00027444,2]
[341677285,1731084643802,-529.0,0.00027444,2]
[341677286,1731084643812,-2392.0,0.00027444,2]
[341677287,1731084643821,-183.686,0.00027444,2]
[341677288,1731084643833,-1229.75338419,0.00027491,2]
[341677289,1731084643843,-172.95,0.00027579,2]
[341677290,1731084643853,-1113.03,0.00027671,2]
[341677291,1731084643863,-529.41,0.00027671,2]
[341677292,1731084643978,-1313.78,0.00027671,2]
[341677293,1731084643998,-150.112233,0.000279,19]
[341677294,1731084644008,-1113.03,0.00027945,2]
[341677295,1731084644018,-529.41,0.00027945,2]
[341677296,1731084644029,-1313.78,0.00027945,2]
[341677297,1731084644042,-173.82525,0.00028142,2]
[341677298,1731084644052,-480.30179333,0.00028214,2]
[341677299,1731084644062,-1113.05,0.00028219,2]
[341677300,1731084644071,-529.59,0.00028219,2]
[341677301,1731084644080,-1313.81298426,0.00028219,2]
[341677302,1731084644090,-4453.88285586,0.00028226,2]
[341677303,1731084644099,-500.0,0.00028406,7]
[341677304,1731084644109,-1235.65,0.000285,2]
[341677305,1731084644119,-150.112233,0.000285,20]
[341677306,1731084644129,-11714.90638567,0.00028572,3]
[341677307,1731084644138,-600.0,0.00028661,2]
[341677308,1731084644148,-3296.24,0.00028663,10]
[341677309,1731084644158,-2746.86,0.00028663,10]
[341677310,1731084644168,-4453.88285586,0.00028753,2]
[341677311,1731084644177,-34120.00971636,0.00028754,2]
[341677312,1731084644186,-500.0,0.00028773,5]
[341677313,1731084644195,-500.0,0.00028773,5]
[341677314,1731084644205,-500.0,0.00028773,5]
[341677315,1731084644214,-500.0,0.00028773,5]
[341677316,1731084644223,-2380.29664844,0.00028773,2]
[341677317,1731084644233,-114076.00741501,0.00028773,2]
[341677318,1731084644243,-444.65064152,0.000288,2]
[341677319,1731084644252,-150.112233,0.000289,14]
[341677320,1731084644262,-1229.75338419,0.0002891,2]
[341677321,1731084644271,-677.28027222,0.00028964,2]
[341677322,1731084644282,-217.0,0.00028997,2]
[341677323,1731084644291,-500.0,0.00028999,2]
[341677324,1731084644301,-150.112233,0.00029,10]
[341677325,1731084644310,-150.112233,0.00029,11]
[341677326,1731084644320,-302.14293118,0.00029,30]
[341677327,1731084644329,-295.42173,0.00029041,7]
[341677328,1731084644339,-295.42173,0.00029041,7]
[341677329,1731084644348,-151.0,0.00029041,7]
[341677330,1731084644357,-220.148521,0.00029041,7]
[341677331,1731084644366,-151.0,0.00029041,7]
[341677332,1731084644376,-151.0,0.00029041,7]
[341677333,1731084644385,-151.0,0.00029041,7]
[341677334,1731084644394,-264.475776,0.00029041,7]
[341677335,1731084644403,-151.0,0.00029041,7]
[341677336,1731084644412,-1333.0,0.00029041,120]
[341677337,1731084644421,-160.0,0.00029063,10]
[341677338,1731084644431,-89436.95556477,0.00029064,30]
[341677339,1731084644451,-2119.23184093,0.00029064,30]
[341677340,1731084644607,-500.0,0.00021917,2]
[341677341,1731084644617,-500.0,0.00021917,2]
[341677342,1731084644627,-500.0,0.00021917,2]
[341677343,1731084644637,-382.8001,0.00029064,30]
[341677344,1731084644650,-1943.0977592,0.00029064,30]
[341677345,1731084644670,-205.06177153,0.00022173,2]
[341677346,1731084644680,-33350.67907659,0.00029064,30]
[341677347,1731084644692,-4267.48609373,0.00029064,30]
[341677348,1731084644704,-34863.20291652,0.00029064,30]
[341677349,1731084644720,-43176.13,0.00029064,30]
[341677350,1731084644735,-27891.03696637,0.00029064,30]
[341677364,1731084663804,946.47405393,0.00020831,2]
[341677365,1731084713039,194.54864158,0.00020831,2]
[341677368,1731085121774,694.44444444,0.00020843,2]
[341677369,1731085156110,170.199509,0.00013973,2]
[341677372,1731085633470,627.0540374,0.00020747,2]
[341677374,1731085733203,694.44444444,0.00020843,2]
[341677376,1731085832126,-300.0,0.00020915,2]
[341677377,1731085832135,-300.0,0.00020915,2]
[341677378,1731085832146,-6006.9951068,0.00020916,2]
[341677379,1731085832155,-882.811348,0.00020916,2]
[341677380,1731085832164,-429.20121578,0.00021817,2]
[341677381,1731085832173,-1287.59240653,0.00021817,2]
[341677382,1731085832183,-500.0,0.00021916,2]
[341677383,1731085832192,-500.0,0.00021916,2]
[341677384,1731085832201,-500.0,0.00021916,2]
[341677385,1731085832210,-500.0,0.00021916,2]
[341677386,1731085832219,-203.35908013,0.00021916,2]
[341677387,1731085832228,-254.96070262,0.00021916,2]
[341677388,1731085832237,-252.08328075,0.00021916,2]
[341677389,1731085832247,-306.7079726,0.00021917,2]
[341677390,1731085832256,-506.95662892,0.00021917,2]
[341677391,1731085832265,-515.61084056,0.00021917,2]
[341677392,1731085832275,-500.0,0.00021917,2]
[341677393,1731085832289,-500.0,0.00021917,2]
[341677394,1731085832298,-500.0,0.00021917,2]
[341677395,1731085832308,-538.94247471,0.00021917,2]
[341677396,1731085832317,-500.0,0.00021917,2]
[341677397,1731085832325,-500.0,0.00021917,2]
[341677398,1731085832334,-500.0,0.00021917,2]
[341677399,1731085832343,-307.25456988,0.00021917,2]
[341677400,1731085832353,-500.0,0.00021917,2]
[341677401,1731085832362,-500.0,0.00021917,2]
[341677402,1731085832370,-500.0,0.00021917,2]
[341677403,1731085832379,-500.0,0.00021917,2]
[341677412,1731085832498,-500.0,0.00021917,2]
[341677414,1731085832508,-500.0,0.00021917,2]
[341677416,1731085832517,-500.0,0.00021917,2]
[341677418,1731085832527,-500.0,0.00021917,2]
[341677420,1731085832540,-517.36091961,0.00021917,2]
[341677422,1731085832550,-265.34610832,0.00021917,2]
[341677424,1731085832559,-451.93351943,0.00021917,2]
[341677426,1731085832569,-572.3266652,0.00021917,2]
[341677428,1731085832578,-500.0,0.00021917,2]
[341677430,1731085832587,-500.0,0.00021917,2]
[341677432,1731085832597,-500.0,0.00021917,2]
[341677434,1731085832607,-500.0,0.00021917,2]
[341677437,1731085832618,-500.0,0.00021917,2]
[341677438,1731085832627,-272.44879828,0.00021917,2]
[341677441,1731085832636,-501.0542681,0.00021917,2]
[341677443,1731085832646,-500.0,0.00021917,2]
[341677445,1731085832655,-500.0,0.00021917,2]
[341677447,1731085832664,-508.03986482,0.00021917,2]
[341677449,1731085832673,-500.0,0.00021917,2]
[341677451,1731085832682,-500.0,0.00021917,2]
[341677453,1731085832691,-500.0,0.00021917,2]
[341677455,1731085832701,-509.33459431,0.00021917,2]
[341677457,1731085832710,-500.0,0.00021917,2]
[341677459,1731085832719,-500.0,0.00021917,2]
[341677461,1731085832728,-505.59569059,0.00021917,2]
[341677463,1731085832738,-562.861813,0.00021917,2]
[341677465,1731085832747,-500.0,0.00021917,2]
[341677467,1731085832756,-514.48330949,0.00021917,2]
[341677469,1731085832765,-500.0,0.00021917,2]
[341677471,1731085832776,-188.64445189,0.00021917,2]
[341677473,1731085832791,-500.0,0.00021917,2]
[341677475,1731085832800,-500.0,0.00021917,2]
[341677476,1731085832810,-500.0,0.00021917,2]
[341677477,1731085832819,-500.0,0.00021917,2]
[341677478,1731085832828,-500.0,0.00021917,2]
[341677481,1731085832837,-500.0,0.00021917,2]
[341677483,1731085832847,-509.30573176,0.00021917,2]
[341677485,1731085832856,-500.0,0.00021917,2]
[341677487,1731085832865,-504.44371767,0.00021917,2]
[341677488,1731085832875,-250.0,0.00021917,2]
[341677489,1731085832885,-500.0,0.00021917,2]
[341677490,1731085832894,-500.0,0.00021917,2]
[341677491,1731085832903,-502.66728639,0.00021917,2]
[341677492,1731085832912,-552.74056723,0.00021917,2]
[341677493,1731085832922,-500.0,0.00021917,2]
[341677494,1731085832932,-500.0,0.00021917,2]
[341677495,1731085832941,-500.0,0.00021917,2]
[341677496,1731085832950,-500.0,0.00021917,2]
[341677497,1731085832959,-500.0,0.00021917,2]
[341677498,1731085832968,-500.0,0.00021917,2]
[341677499,1731085832978,-410.25423262,0.00021917,2]
[341677500,1731085832987,-512.41716238,0.00021917,2]
[341677501,1731085832996,-508.06272751,0.00021917,2]
[341677503,1731085833006,-504.34846256,0.00021917,2]
[341677505,1731085833017,-500.0,0.00021917,2]
[341677506,1731085833026,-500.0,0.00021917,2]
[341677507,1731085833039,-500.0,0.00021917,2]
[341677508,1731085833049,-500.0,0.00021917,2]
[341677510,1731085833061,-254.19683359,0.00021917,2]
[341677511,1731085833071,-586.03107679,0.00021917,2]
[341677512,1731085833081,-500.0,0.00021917,2]
[341677513,1731085833090,-500.0,0.00021917,2]
[341677514,1731085833101,-500.0,0.00021917,2]
[341677515,1731085833110,-500.0,0.00021917,2]
[341677516,1731085833120,-500.0,0.00021917,2]
[341677517,1731085833129,-502.12051968,0.00021917,2]
[341677518,1731085833138,-500.0,0.00021917,2]
[341677519,1731085833148,-500.0,0.00021917,2]
[341677520,1731085833157,-500.0,0.00021917,2]
[341677521,1731085833167,-500.0,0.00021917,2]
[341677522,1731085833177,-508.41077583,0.00021917,2]
[341677523,1731085833186,-500.0,0.00021917,2]
[341677524,1731085833197,-500.0,0.00021917,2]
[341677525,1731085833206,-500.0,0.00021917,2]
[341677526,1731085833215,-501.7705837,0.00021917,2]
[341677527,1731085833225,-500.0,0.00021917,2]
[341677528,1731085833234,-500.0,0.00021917,2]
[341677529,1731085833244,-500.0,0.00021917,2]
[341677530,1731085833253,-500.0,0.00021917,2]
[341677531,1731085833263,-500.0,0.00021917,2]
[341677533,1731085833272,-500.0,0.00021917,2]
[341677534,1731085833284,-500.0,0.00021917,2]
[341677535,1731085833294,-500.0,0.00021917,2]
[341677536,1731085833303,-500.0,0.00021917,2]
[341677537,1731085833312,-500.0,0.00021917,2]
[341677538,1731085833321,-500.0,0.00021917,2]
[341677539,1731085833330,-508.73102846,0.00021917,2]
[341677540,1731085833339,-503.08182075,0.00021917,2]
[341677541,1731085833349,-500.0,0.00021917,2]
[341677542,1731085833358,-500.0,0.00021917,2]
[341677543,1731085833368,-500.0,0.00021917,2]
[341677544,1731085833377,-186.93338743,0.00021917,2]
[341677545,1731085833386,-500.0,0.00021917,2]
[341677546,1731085833395,-500.0,0.00021917,2]
[341677547,1731085833404,-500.0,0.00021917,2]
[341677548,1731085833414,-500.0,0.00021917,2]
[341677549,1731085833423,-500.0,0.00021917,2]
[341677550,1731085833432,-500.0,0.00021917,2]
[341677551,1731085833442,-500.0,0.00021917,2]
[341677552,1731085833451,-500.0,0.00021917,2]
[341677553,1731085833460,-500.0,0.00021917,2]
[341677554,1731085833470,-500.0,0.00021917,2]
[341677555,1731085833479,-500.0,0.00021917,2]
[341677556,1731085833488,-152.79097722,0.00021917,2]
[341677557,1731085833497,-506.60112184,0.00021917,2]
[341677558,1731085833507,-500.0,0.00021917,2]
[341677559,1731085833516,-500.0,0.00021917,2]
[341677560,1731085833526,-500.0,0.00021917,2]
[341677561,1731085833539,-500.0,0.00021917,2]
[341677562,1731085833548,-433.98750291,0.00021917,2]
[341677563,1731085833558,-500.0,0.00021917,2]
[341677564,1731085833568,-500.0,0.00021917,2]
[341677565,1731085833577,-506.98241935,0.00021917,2]
[341677566,1731085833587,-500.0,0.00021917,2]
[341677567,1731085833596,-500.0,0.00021917,2]
[341677568,1731085833606,-501.50307458,0.00021917,2]
[341677569,1731085833615,-519.34297907,0.00021917,2]
[341677570,1731085833624,-501.33015017,0.00021917,2]
[341677571,1731085833634,-508.9410394,0.00021917,2]
[341677572,1731085833643,-500.0,0.00021917,2]
[341677573,1731085833653,-500.0,0.00021917,2]
[341677574,1731085833662,-503.37083985,0.00021917,2]
[341677575,1731085833671,-500.0,0.00021917,2]
[341677576,1731085833683,-500.0,0.00021917,2]
[341677577,1731085833692,-500.0,0.00021917,2]
[341677578,1731085833702,-500.0,0.00021917,2]
[341677579,1731085833711,-508.9566805,0.00021917,2]
[341677580,1731085833721,-503.27015856,0.00021917,2]
[341677581,1731085833730,-500.0,0.00021917,2]
[341677582,1731085833740,-500.0,0.00021917,2]
[341677583,1731085833750,-500.74696836,0.00021917,2]
[341677584,1731085833760,-512.35021148,0.00021917,2]
[341677585,1731085833769,-172.31773014,0.00021917,2]
[341677586,1731085833779,-500.0,0.00021917,2]
[341677587,1731085833793,-586.95092265,0.00021917,2]
[341677588,1731085833803,-500.0,0.00021917,2]
[341677589,1731085833813,-500.0,0.00021917,2]
[341677590,1731085833823,-500.0,0.00021917,2]
[341677591,1731085833833,-500.0,0.00021917,2]
[341677592,1731085833842,-521.90715971,0.00021917,2]
[341677593,1731085833852,-508.65226021,0.00021917,2]
[341677594,1731085833862,-506.23719266,0.00021917,2]
[341677595,1731085833872,-500.0,0.00021917,2]
[341677596,1731085833882,-522.80610124,0.00021917,2]
[341677597,1731085833891,-501.67287588,0.00021917,2]
[341677598,1731085833901,-500.0,0.00021917,2]
[341677599,1731085833910,-500.0,0.00021917,2]
[341677600,1731085833920,-503.15218794,0.00021917,2]
[341677601,1731085833929,-500.0,0.00021917,2]
[341677602,1731085833938,-510.29020744,0.00021917,2]
[341677603,1731085833948,-503.08493071,0.00021917,2]
[341677604,1731085833957,-500.0,0.00021917,2]
[341677605,1731085833966,-500.0,0.00021917,2]
[341677606,1731085833975,-500.0,0.00021917,2]
[341677607,1731085833985,-503.18849871,0.00021917,2]
[341677608,1731085833995,-500.0,0.00021917,2]
[341677609,1731085834005,-500.0,0.00021917,2]
[341677610,1731085834017,-310.42607565,0.00021917,2]
[341677611,1731085834027,-161.1951441,0.00021917,2]
[341677612,1731085834041,-569.54607801,0.00021917,2]
[341677613,1731085834051,-500.0,0.00021917,2]
[341677614,1731085834060,-500.0,0.00021917,2]
[341677615,1731085834070,-500.0,0.00021917,2]
[341677616,1731085834080,-500.0,0.00021917,2]
[341677617,1731085834091,-500.0,0.00021917,2]
[341677618,1731085834100,-500.0,0.00021917,2]
[341677619,1731085834110,-500.0,0.00021917,2]
[341677620,1731085834120,-500.0,0.00021917,2]
[341677621,1731085834130,-500.0,0.00021917,2]
[341677622,1731085834140,-500.0,0.00021917,2]
[341677623,1731085834150,-503.8412065,0.00021917,2]
[341677624,1731085834159,-500.0,0.00021917,2]
[341677625,1731085834169,-500.0,0.00021917,2]
[341677626,1731085834179,-474.0815568,0.00021917,2]
[341677627,1731085834188,-500.0,0.00021917,2]
[341677628,1731085834197,-500.0,0.00021917,2]
[341677629,1731085834207,-500.0,0.00021917,2]
[341677630,1731085834217,-500.0,0.00021917,2]
[341677631,1731085834227,-500.0,0.00021917,2]
[341677632,1731085834237,-500.0,0.00021917,2]
[341677633,1731085834247,-500.0,0.00021917,2]
[341677634,1731085834256,-500.0,0.00021917,2]
[341677635,1731085834266,-500.0,0.00021917,2]
[341677636,1731085834276,-500.0,0.00021917,2]
[341677637,1731085834289,-500.0,0.00021917,2]
[341677638,1731085834299,-500.0,0.00021917,2]
[341677639,1731085834308,-500.0,0.00021917,2]
[341677640,1731085834318,-500.0,0.00021917,2]
[341677641,1731085834328,-500.0,0.00021917,2]
[341677642,1731085834338,-500.0,0.00021917,2]
[341677643,1731085834348,-500.0,0.00021917,2]
[341677644,1731085834357,-500.0,0.00021917,2]